bitfinex/quotes_ETHUSD_20240927
["timestamp","ask_amount","ask_price","bid_price","bid_amount"]
[1727433755302,0.59070038,2649.7,2649.2,0.8251]
[1727433755303,0.59070038,2649.6,2649.2,0.8251]
[1727433756022,4.36485038,2649.6,2649.2,0.8251]
[1727433756216,4.36500038,2649.5,2649.2,0.8251]
[1727433756435,3.7743,2649.5,2649.2,0.8251]
[1727433756633,4.55245766,2649.6,2649.2,0.8251]
[1727433756808,0.59073483,2649.5,2649.2,0.8251]
[1727433757161,4.55245766,2649.6,2649.2,0.8251]
[1727433757445,0.59073524,2649.5,2649.2,0.8251]
[1727433757650,4.55245766,2649.6,2649.2,0.8251]
[1727433757812,0.59073628,2649.5,2649.2,0.8251]
[1727433758012,4.55245766,2649.6,2649.2,0.8251]
[1727433758248,0.59073653,2649.5,2649.2,0.8251]
[1727433758436,4.55245766,2649.6,2649.2,0.8251]
[1727433758637,0.59073658,2649.5,2649.2,0.8251]
[1727433758930,0.59073482,2649.4,2648.9,3.77505]
[1727433759131,8.37721879,2649.5,2649.0,0.7565]
[1727433759317,1.36902267,2649.4,2649.0,0.7565]
[1727433759523,0.77823766,2649.4,2649.0,0.7565]
[1727433759729,5.01597766,2649.4,2649.0,0.7565]
[1727433760131,5.01597766,2649.4,2648.8,0.7565]
[1727433760334,4.60291879,2649.3,2648.8,0.7565]
[1727433760644,8.37752879,2649.3,2648.8,0.7565]
[1727433761019,0.77823766,2649.2,2648.8,0.7565]
[1727433762314,0.77823766,2649.2,2648.9,0.453184]
[1727433762516,0.77823766,2649.2,2648.8,4.60728693]
[1727433762718,0.77823766,2649.2,2648.9,3.77513]
[1727433763213,1.1666826,2649.4,2648.9,3.77513]
[1727433763214,0.77823766,2649.3,2648.9,3.77513]
[1727433763419,0.77823766,2649.2,2648.9,3.77513]
[1727433763852,0.77823766,2649.2,2649.0,0.8103]
[1727433767126,0.77823766,2649.1,2649.0,0.8103]
[1727433767844,0.77823766,2649.1,2648.8,0.7936]
[1727433772151,0.77823766,2648.9,2648.8,0.7936]
[1727433773453,0.77823766,2648.9,2648.5,3.77559]
[1727433773454,0.77823766,2648.9,2648.6,0.826]
[1727433773954,0.77823766,2648.8,2648.6,0.826]
[1727433774259,0.77823766,2648.8,2648.6,1.586185]
[1727433774847,4.55341766,2648.9,2648.6,1.586185]
[1727433775061,4.55341766,2648.9,2648.6,0.826]
[1727433775217,2.93049956,2649.0,2648.6,0.826]
[1727433775218,0.77823766,2648.8,2648.6,0.826]
[1727433775654,1.24153766,2648.9,2648.4,4.57203]
[1727433775961,0.77823766,2648.7,2648.4,5.763233]
[1727433777045,0.77823766,2648.7,2648.4,9.538983]
[1727433777249,0.77823766,2648.8,2648.5,3.7757]
[1727433777451,0.77823766,2648.8,2648.6,0.9538853]
[1727433777853,0.77823766,2648.7,2648.6,0.9538853]
[1727433778160,0.77823766,2648.7,2648.5,3.7757]
[1727433778463,0.77823766,2648.7,2648.4,4.57195]
[1727433778660,0.77823766,2648.7,2648.4,3.77575]
[1727433778825,0.77823766,2648.7,2648.3,0.758]
[1727433779025,2.54205462,2648.6,2648.3,0.758]
[1727433779260,2.54205462,2648.6,2648.2,3.77609]
[1727433779426,0.77823766,2648.5,2648.2,4.831333]
[1727433779628,0.77823766,2648.5,2648.2,1.055243]
[1727433780470,0.77823766,2648.5,2648.2,4.831363]
[1727433780765,0.77823766,2648.4,2648.2,4.831363]
[1727433781149,0.77823766,2648.4,2648.2,4.831313]
[1727433781352,0.77823766,2648.5,2648.3,0.56965254]
[1727433781720,0.77823766,2648.5,2648.3,4.34565254]
[1727433783473,2.54205462,2648.6,2648.3,8.12158254]
[1727433783670,0.77823766,2648.6,2648.3,8.12158254]
[1727433783875,0.77823766,2648.6,2648.3,4.34558254]
[1727433784043,0.77823766,2648.5,2648.3,4.34558254]
[1727433784540,0.77823766,2648.6,2648.4,3.77586]
[1727433787735,0.77823766,2648.6,2648.5,0.7681]
[1727433788438,0.77823766,2648.7,2648.5,4.54382]
[1727433789142,0.77823766,2648.7,2648.5,0.7681]
[1727433789343,0.77823766,2648.7,2648.5,1.26669823]
[1727433791587,0.77823766,2648.7,2648.5,0.7681]
[1727433796871,0.77823766,2648.6,2648.3,4.53768]
[1727433797382,1.24153766,2648.6,2648.3,0.7618]
[1727433797778,5.01712766,2648.6,2648.3,0.7618]
[1727433797983,0.77823766,2648.5,2648.1,4.53803]
[1727433798281,0.77823766,2648.5,2648.2,0.453803]
[1727433798492,0.77823766,2648.4,2647.9,7.53828]
[1727433798781,4.55409766,2648.4,2647.9,4.53828]
[1727433798967,0.77823766,2648.3,2648.0,0.453828]
[1727433799488,5.01775766,2648.2,2647.7,0.7618]
[1727433799690,5.54010696,2648.1,2647.6,3.77697]
[1727433799863,6.31834462,2648.1,2647.6,4.964847]
[1727433800063,6.31834462,2648.1,2647.6,3.77697]
[1727433800669,2.54205462,2648.1,2647.6,3.77697]
[1727433801083,0.77823766,2648.0,2647.6,3.77697]
[1727433801344,0.77823766,2648.0,2647.6,7.5539]
[1727433801493,2.54205462,2648.1,2647.6,3.77693]
[1727433801691,2.54205462,2648.1,2647.7,0.453873]
[1727433802396,2.54205462,2648.1,2647.7,4.230703]
[1727433802753,1.76381696,2647.9,2647.5,0.7618]
[1727433802954,1.76381696,2647.9,2647.3,0.129607]
[1727433802955,1.76381696,2647.7,2647.3,0.886707]
[1727433803157,1.76381696,2647.5,2647.3,0.129607]
[1727433803782,0.77823766,2647.6,2647.3,0.129607]
[1727433803982,0.77823766,2647.5,2647.3,0.129607]
[1727433804157,0.77823766,2647.5,2647.3,3.907027]
[1727433804593,0.77823766,2647.5,2647.3,0.129607]
[1727433805698,0.77823766,2647.6,2647.3,0.129607]
[1727433805904,0.77823766,2647.6,2647.3,3.906997]
[1727433806553,2.54205462,2647.7,2647.3,3.906997]
[1727433806889,2.54205462,2647.7,2647.3,0.9737637]
[1727433807107,2.54205462,2647.7,2647.4,3.77727]
[1727433807263,0.77823766,2647.7,2647.4,3.77727]
[1727433807872,1.24153766,2647.8,2647.4,0.07553784]
[1727433808099,0.77823766,2647.8,2647.5,4.56377]
[1727433808257,2.54205462,2647.9,2647.5,4.56377]
[1727433809085,6.31863462,2647.9,2647.5,0.7867]
[1727433809475,10.09528462,2647.9,2647.3,3.906937]
[1727433809706,6.31863462,2647.9,2647.3,8.447987]
[1727433809872,10.09528462,2647.9,2647.3,9.30033949]
[1727433810498,10.09528462,2647.9,2647.3,5.52298949]
[1727433810686,6.31863462,2647.9,2647.3,9.30032949]
[1727433811501,6.31863462,2647.9,2647.4,3.77717]
[1727433811906,10.09531462,2647.9,2647.3,5.52298949]
[1727433812199,6.31863462,2647.9,2647.4,0.07553793]
[1727433812405,6.31863462,2647.9,2647.4,4.71478574]
[1727433812813,6.31863462,2647.9,2647.4,4.79032367]
[1727433813106,6.31863462,2647.9,2647.4,4.7903236]
[1727433813313,6.31863462,2647.9,2647.4,4.71478574]
[1727433814014,6.31863462,2647.9,2647.4,3.7772]
[1727433814171,0.77823766,2648.0,2647.6,0.7672]
[1727433814371,1.24153766,2648.2,2647.8,3.77672]
[1727433814682,2.22711696,2648.2,2647.9,0.377672]
[1727433815013,6.78150462,2648.2,2647.7,3.77685]
[1727433817003,0.77823766,2648.1,2647.6,4.54407]
[1727433817307,6.78150462,2648.2,2647.7,3.77684]
[1727433817508,0.77823766,2648.1,2647.7,3.77684]
[1727433817897,10.55774462,2648.2,2647.7,3.77684]
[1727433818225,6.78150462,2648.2,2647.6,4.998477]
[1727433818511,4.55454766,2648.1,2647.6,4.998477]
[1727433818714,4.55454766,2648.1,2647.7,0.4998477]
[1727433818876,4.55454766,2648.1,2647.6,0.454407]
[1727433819208,1.76381696,2648.0,2647.6,0.454407]
[1727433819908,1.76381696,2648.0,2647.6,4.231397]
[1727433821196,2.54205462,2648.0,2647.6,4.231397]
[1727433822104,4.55459766,2648.1,2647.7,3.77685]
[1727433822313,4.55459766,2648.1,2647.8,0.8008147]
[1727433822921,1.3693502,2648.0,2647.8,0.8008147]
[1727433823123,0.77823766,2648.0,2647.8,0.8008147]
[1727433823426,1.0544163,2647.9,2647.5,3.77705]
[1727433823632,0.4633,2647.9,2647.6,3.77699]
[1727433823791,0.4633,2647.9,2647.6,4.908854]
[1727433824301,0.4633,2647.9,2647.6,1.131864]
[1727433824929,0.4633,2647.9,2647.5,3.77705]
[1727433825102,1.24153766,2647.9,2647.5,3.77705]
[1727433825289,0.59112288,2647.8,2647.5,3.77705]
[1727433825631,0.4633,2647.9,2647.5,3.77705]
[1727433825928,0.59112524,2647.8,2647.6,3.77693]
[1727433826097,2.54205462,2648.0,2647.6,4.61634113]
[1727433826294,0.59109688,2647.9,2647.6,4.61634113]
[1727433826494,1.24153766,2648.1,2647.7,3.77684]
[1727433826828,0.5910878,2648.0,2647.7,3.77678]
[1727433827013,0.5910878,2647.9,2647.7,3.77678]
[1727433827205,0.77823766,2648.0,2647.7,4.24595216]
[1727433827405,0.59109765,2647.9,2647.8,4.60092]
[1727433827730,0.59109765,2647.9,2647.8,0.8242]
[1727433828492,0.77823766,2648.1,2647.8,0.8242]
[1727433828735,0.59108243,2648.0,2647.8,0.8242]
[1727433828932,0.59108243,2647.9,2647.8,0.8242]
[1727433829808,0.59108243,2647.9,2647.8,4.60092]
[1727433830010,0.59108243,2647.9,2647.8,5.438686]
[1727433830417,0.59108243,2647.9,2647.8,1.661966]
[1727433831502,0.59108243,2647.9,2647.8,5.438686]
[1727433832332,0.59107857,2647.9,2647.8,5.438686]
[1727433834699,0.59107857,2647.9,2647.8,1.661966]
[1727433834898,0.59107857,2647.9,2647.7,3.77679]
[1727433835134,0.59107857,2647.8,2647.7,3.77679]
[1727433835335,0.59107857,2647.8,2647.6,4.53349]
[1727433835538,0.4633,2647.9,2647.7,3.77686]
[1727433835904,0.59108104,2647.8,2647.7,3.77686]
[1727433836104,0.59108104,2647.8,2647.7,4.532235]
[1727433837612,0.59108104,2647.8,2647.7,5.313035]
[1727433838138,0.77823766,2648.2,2648.0,3.77643]
[1727433838301,0.77823766,2648.2,2648.1,4.531589]
[1727433838501,1.37035771,2648.2,2648.1,4.531589]
[1727433838701,1.90269854,2648.2,2648.1,4.531589]
[1727433839235,0.779371,2648.2,2648.1,5.871289]
[1727433839538,2.47835799,2648.4,2648.1,5.871289]
[1727433839539,0.779371,2648.4,2648.2,3.77614]
[1727433839746,0.779371,2648.4,2648.2,4.3632689]
[1727433840036,0.779371,2648.5,2648.4,5.11556]
[1727433840241,0.779371,2648.6,2648.5,3.77572]
[1727433840563,0.779371,2648.7,2648.6,3.77557]
[1727433840705,0.779371,2648.7,2648.6,4.80271729]
[1727433841060,0.779371,2648.8,2648.7,3.77543]
[1727433841369,0.779371,2648.9,2648.8,3.77529]
[1727433841647,0.779371,2649.0,2648.8,3.77529]
[1727433841944,0.779371,2649.0,2648.8,3.85078803]
[1727433842333,0.779371,2649.0,2648.8,5.46750531]
[1727433843202,0.779371,2649.0,2648.9,3.77515]
[1727433843530,0.779371,2649.2,2648.9,3.77515]
[1727433843697,0.779371,2649.2,2648.9,3.85064211]
[1727433844517,0.779371,2649.3,2648.9,4.77490705]
[1727433844922,0.779371,2649.3,2648.9,4.69941494]
[1727433845217,1.31805891,2649.2,2648.9,4.77490631]
[1727433845406,2.54318796,2649.3,2648.9,4.77490631]
[1727433845607,0.779371,2649.3,2649.0,4.70620963]
[1727433845808,0.779371,2649.4,2649.0,7.5498]
[1727433846039,0.779371,2649.4,2649.2,0.7591]
[1727433846240,0.779371,2649.6,2649.3,7.54908]
[1727433846474,1.1666826,2649.7,2649.3,7.54908]
[1727433846475,0.779371,2649.7,2649.4,0.83836638]
[1727433846640,1.242671,2649.8,2649.5,3.77429]
[1727433846973,0.779371,2649.8,2649.5,3.77429]
[1727433847169,0.779371,2649.8,2649.5,4.62055339]
[1727433847469,0.779371,2649.9,2649.5,4.62055339]
[1727433847778,2.54318796,2650.0,2649.6,0.8145]
[1727433848461,6.31679796,2650.0,2649.6,0.8145]
[1727433848861,5.53742696,2650.0,2649.6,0.8145]
[1727433849046,0.779371,2650.1,2649.6,4.58861]
[1727433849373,6.31671796,2650.1,2649.6,0.8145]
[1727433849573,5.53734696,2650.1,2649.6,0.8145]
[1727433849738,0.779371,2650.1,2649.7,0.55104287]
[1727433849939,6.77982796,2650.2,2649.7,3.8493973]
[1727433850155,6.77982796,2650.2,2649.7,3.77393]
[1727433850440,10.55322796,2650.2,2649.7,3.77393]
[1727433850635,6.77982796,2650.2,2649.6,0.8145]
[1727433850834,1.76381696,2650.0,2649.1,4.3446]
[1727433851068,5.53748696,2650.0,2649.4,3.77434]
[1727433851276,1.242671,2650.2,2649.6,0.7764]
[1727433851437,0.4633,2650.4,2650.1,3.77343]
[1727433851637,0.4633,2650.4,2650.1,3.77336]
[1727433851836,2.22711696,2650.6,2650.1,4.15824216]
[1727433852260,1.76381696,2650.4,2650.0,0.7764]
[1727433852937,1.76381696,2650.4,2650.1,3.77335]
[1727433853278,0.4633,2650.6,2650.0,0.7764]
[1727433853279,2.22711696,2650.6,2650.0,0.7764]
[1727433853583,2.22711696,2650.6,2650.1,3.7734]
[1727433853736,0.4633,2650.6,2650.2,3.77329]
[1727433853947,2.22711696,2650.6,2650.1,3.7734]
[1727433854376,0.4633,2650.6,2650.1,3.7734]
[1727433854786,4.23608,2650.6,2650.1,3.77334]
[1727433855386,0.4633,2650.6,2650.1,3.77334]
[1727433855595,0.4633,2650.6,2650.1,8.047154]
[1727433855804,0.4633,2650.6,2650.1,4.273804]
[1727433856089,4.23604,2650.6,2650.0,3.77354]
[1727433856255,3.81834358,2650.5,2650.0,3.77354]
[1727433857272,3.81834358,2650.5,2650.1,3.77344]
[1727433858362,3.81834358,2650.5,2650.1,7.54678]
[1727433858566,0.4633,2650.6,2650.1,3.77334]
[1727433858957,4.23604,2650.6,2650.1,3.77334]
[1727433861519,4.23604,2650.6,2649.9,3.77363]
[1727433861520,4.23604,2650.6,2649.9,7.54722]
[1727433861685,3.77287,2650.5,2650.0,3.77354]
[1727433862195,4.23604,2650.6,2650.0,3.77354]
[1727433862727,0.4633,2650.4,2650.0,3.77354]
[1727433862926,0.4633,2650.4,2649.9,4.610842]
[1727433863219,3.81834358,2650.5,2650.1,3.7734]
[1727433867332,3.81834358,2650.5,2650.1,7.5468]
[1727433867839,3.81834358,2650.5,2650.1,3.7734]
[1727433868412,3.81834358,2650.5,2650.1,7.54676]
[1727433869346,0.4633,2650.6,2650.2,3.77326]
[1727433874470,4.23604,2650.6,2650.2,3.77326]
[1727433874618,13.00993494,2650.6,2650.1,3.77344]
[1727433874934,13.00993494,2650.6,2650.0,3.77357]
[1727433874935,8.05438358,2650.6,2650.0,3.77357]
[1727433875139,8.05438358,2650.6,2650.2,3.77328]
[1727433876463,1.76234263,2650.5,2650.2,3.77328]
[1727433877887,0.4633,2650.4,2650.0,3.77357]
[1727433878058,0.4633,2650.4,2650.1,3.77334]
[1727433878261,0.4633,2650.4,2650.2,3.77329]
[1727433878464,0.4633,2650.4,2650.2,3.7732]
[1727433881271,0.4633,2650.4,2650.1,3.77342]
[1727433882578,0.4633,2650.4,2650.1,3.77336]
[1727433882772,0.4633,2650.4,2650.1,7.54671]
[1727433883202,3.77274,2650.6,2650.2,3.77328]
[1727433883533,2.22564263,2650.6,2650.2,3.77328]
[1727433883679,2.22564263,2650.6,2650.2,0.7914]
[1727433883875,2.22564263,2650.6,2650.2,4.56469]
[1727433884276,2.22564263,2650.6,2650.3,3.77314]
[1727433884489,1.242671,2650.6,2650.3,3.77314]
[1727433884772,0.779371,2650.7,2650.4,3.77301]
[1727433885173,3.00501363,2650.8,2650.4,3.77301]
[1727433885406,3.00501363,2650.8,2650.5,3.77278]
[1727433885621,0.779371,2650.9,2650.7,3.77254]
[1727433885775,0.779371,2650.9,2650.8,0.837024]
[1727433886114,0.779371,2650.9,2650.7,3.77254]
[1727433886115,2.1109818,2650.9,2650.7,3.77254]
[1727433886305,0.779371,2651.0,2650.6,4.5977]
[1727433886813,0.779371,2650.9,2650.6,4.5977]
[1727433887304,0.779371,2651.0,2650.6,4.5977]
[1727433887496,0.779371,2650.9,2650.6,4.5977]
[1727433887807,0.779371,2650.9,2650.6,5.05747]
[1727433889509,2.11175703,2650.8,2650.6,5.05747]
[1727433889713,0.779371,2650.8,2650.6,5.05747]
[1727433890071,0.59042402,2650.7,2650.6,5.05747]
[1727433890810,2.7033948,2650.7,2650.4,3.77293]
[1727433890970,2.70349015,2650.6,2650.4,3.77293]
[1727433891174,0.779371,2650.6,2650.4,3.77293]
[1727433891374,1.36984005,2650.5,2650.4,3.77293]
[1727433891676,2.72097165,2650.5,2650.4,4.69929851]
[1727433891876,0.59046905,2650.5,2650.4,4.69929851]
[1727433892107,0.779371,2650.6,2650.5,3.77287]
[1727433892310,1.36981275,2650.6,2650.5,3.77287]
[1727433892513,1.36981275,2650.6,2650.5,4.79184236]
[1727433892808,2.72160023,2650.6,2650.5,1.01897236]
[1727433893793,2.72160023,2650.6,2650.4,3.77293]
[1727433894106,1.35178748,2650.5,2650.4,3.77293]
[1727433894311,2.72163316,2650.5,2650.4,3.77301]
[1727433894511,1.94226216,2650.5,2650.4,3.77301]
[1727433894671,2.51847008,2650.5,2650.4,3.77301]
[1727433894874,2.51847008,2650.5,2650.3,4.58145]
[1727433894875,1.94228108,2650.5,2650.3,4.58145]
[1727433895113,2.72349181,2650.4,2650.3,4.58145]
[1727433895502,2.72367281,2650.4,2650.3,4.58145]
[1727433896203,1.35178748,2650.4,2650.2,3.77327]
[1727433896403,2.13317509,2650.3,2650.2,6.77327]
[1727433896622,2.13317509,2650.3,2650.2,7.910625]
[1727433899341,3.04194247,2650.3,2650.2,4.910625]
[1727433900243,3.04194247,2650.3,2650.2,3.77327]
[1727433900423,2.26055486,2650.3,2650.2,3.77327]
[1727433900626,7.20937617,2650.3,2650.0,3.77357]
[1727433900800,6.5471609,2650.2,2650.0,3.77344]
[1727433901006,6.23201776,2650.1,2650.0,3.77344]
[1727433901339,3.11486125,2650.1,2650.0,3.77344]
[1727433901700,8.65074388,2650.1,2649.7,0.7781]
[1727433901914,8.65074388,2650.1,2649.7,3.77388]
[1727433901915,1.17255732,2649.8,2649.7,3.77388]
[1727433902119,3.11787486,2649.8,2649.7,3.77388]
[1727433902329,3.11787486,2649.8,2649.7,4.611691]
[1727433902330,2.26731849,2649.8,2649.7,4.611691]
[1727433902642,3.43951287,2649.8,2649.7,4.611691]
[1727433902811,3.11751192,2649.8,2649.7,5.49206701]
[1727433903013,0.781484,2650.0,2649.8,7.57876]
[1727433903215,0.781484,2650.2,2650.1,7.32344]
[1727433903443,0.781484,2650.3,2650.2,8.0825]
[1727433903613,0.781484,2650.6,2650.5,3.77287]
[1727433903818,2.10642728,2650.6,2650.5,3.77287]
[1727433905912,2.81915262,2650.6,2650.5,3.77287]
[1727433906651,2.81045463,2650.6,2650.5,3.77287]
[1727433906850,2.81045463,2650.6,2650.5,5.04031538]
[1727433907143,1.63826025,2650.6,2650.5,1.26744538]
[1727433907346,3.4039673,2650.6,2650.4,3.77301]
[1727433907651,2.09756471,2650.5,2650.4,6.77292]
[1727433908249,2.09756471,2650.5,2650.4,3.77292]
[1727433908737,1.31624529,2650.5,2650.4,3.77292]
[1727433909049,1.31624529,2650.5,2650.4,4.606603]
[1727433909741,2.09726168,2650.5,2650.4,0.833683]
[1727433910047,2.09726168,2650.5,2650.4,4.606693]
[1727433911062,2.09733695,2650.5,2650.4,4.606693]
[1727433911239,1.31624529,2650.5,2650.4,4.606693]
[1727433911626,1.33216553,2650.5,2650.4,4.606693]
[1727433911828,0.78144813,2650.6,2650.4,9.00044783]
[1727433912057,0.78144813,2650.9,2650.7,0.7586]
[1727433912257,2.10114812,2651.0,2650.9,7.3223]
[1727433912557,0.78144813,2651.2,2651.1,3.77201]
[1727433912756,0.78144813,2651.3,2651.2,3.77187]
[1727433912941,2.10075181,2651.3,2651.2,4.581258]
[1727433913146,0.78144813,2651.4,2651.3,3.77173]
[1727433913361,0.78136104,2651.6,2651.4,3.77159]
[1727433913563,0.78136104,2651.6,2651.5,3.77145]
[1727433913769,0.78136104,2651.9,2651.6,3.0]
[1727433913972,0.78136104,2651.9,2651.5,4.39042111]
[1727433913973,4.59888522,2652.0,2651.5,0.84040876]
[1727433914180,0.4633,2651.5,2650.2,4.53817]
[1727433914330,0.7808012,2650.8,2650.6,3.77269]
[1727433914532,0.7808012,2650.8,2650.4,3.7729]
[1727433914734,0.7808012,2650.8,2650.2,0.765]
[1727433914735,0.7808012,2650.7,2650.3,3.77308]
[1727433915037,0.7808012,2650.7,2650.5,3.77277]
[1727433915244,0.7808012,2650.7,2650.6,3.77273]
[1727433915438,2.09567782,2650.7,2650.5,3.77277]
[1727433915645,0.78072737,2650.7,2650.5,3.77277]
[1727433915865,2.09570621,2650.7,2650.5,3.77277]
[1727433916230,0.78072737,2650.7,2650.5,3.77277]
[1727433916431,0.78072737,2650.6,2650.4,3.77301]
[1727433917029,2.1037834,2650.6,2650.4,3.77301]
[1727433917266,0.78072737,2650.6,2650.4,3.77301]
[1727433917948,0.78072737,2650.6,2650.5,3.77287]
[1727433918133,0.78072737,2650.7,2650.5,3.77287]
[1727433918668,2.1121669,2650.7,2650.5,3.77287]
[1727433918838,1.33143953,2650.6,2650.5,3.77287]
[1727433919163,2.1121669,2650.6,2650.5,3.77287]
[1727433919670,0.78072737,2650.6,2650.5,3.77287]
[1727433919833,0.78072737,2650.7,2650.5,3.77287]
[1727433920036,0.78072737,2650.7,2650.6,3.77273]
[1727433920228,0.78072737,2650.8,2650.7,3.77258]
[1727433921334,2.11276079,2650.8,2650.7,3.77258]
[1727433921667,0.78072737,2650.8,2650.7,3.77258]
[1727433922265,2.11276079,2650.8,2650.7,3.77258]
[1727433922468,0.78072737,2650.8,2650.7,3.77258]
[1727433922866,2.50323523,2650.8,2650.7,3.77258]
[1727433923278,1.33203342,2650.8,2650.7,3.77258]
[1727433923429,1.33203342,2650.8,2650.5,4.53490334]
[1727433923630,0.78137607,2650.7,2650.3,3.77311]
[1727433923865,0.78137607,2650.6,2650.4,3.77301]
[1727433924037,0.78137607,2650.6,2650.5,3.77287]
[1727433924247,2.12157655,2650.6,2650.5,3.77287]
[1727433926270,2.13005364,2650.6,2650.5,3.77287]
[1727433926449,1.34867757,2650.6,2650.5,3.77287]
[1727433926653,2.13027614,2650.6,2650.5,3.77287]
[1727433926966,1.34867757,2650.6,2650.5,3.77287]
[1727433927168,3.77311,2650.4,2649.8,0.8087]
[1727433927469,3.77311,2650.4,2649.5,7.34]
[1727433927470,0.78152534,2650.0,2649.7,3.77392]
[1727433927688,0.78152534,2649.9,2649.7,4.528733]
[1727433927976,0.78152534,2650.0,2649.9,3.77372]
[1727433928269,2.12786276,2650.0,2649.9,3.77372]
[1727433928471,1.34270892,2650.0,2649.9,3.77372]
[1727433928637,0.78152534,2650.0,2649.9,3.77372]
[1727433929238,2.12423426,2650.0,2649.9,4.528474]
[1727433929434,1.56160241,2650.3,2649.9,4.528474]
[1727433929435,0.78152534,2650.1,2650.0,3.77358]
[1727433929635,0.78152534,2650.2,2650.1,3.77344]
[1727433929874,2.12443665,2650.3,2650.1,4.69203367]
[1727433930080,2.12443665,2650.3,2650.2,3.7733]
[1727433930081,0.78152534,2650.3,2650.2,3.7733]
[1727433930947,2.12405699,2650.3,2650.2,3.7733]
[1727433931159,0.78152534,2650.4,2650.3,3.77315]
[1727433931366,2.13221909,2650.4,2650.3,5.80569737]
[1727433931578,2.13221909,2650.4,2650.3,8.80569737]
[1727433931879,0.78152534,2650.6,2650.5,3.77287]
[1727433932092,0.78152534,2650.6,2650.5,5.03071274]
[1727433932283,0.78152534,2650.7,2650.6,3.77273]
[1727433933191,2.13666448,2650.7,2650.6,3.77273]
[1727433933555,2.13666448,2650.7,2650.5,5.03071274]
[1727433933774,2.13666448,2650.7,2650.5,5.03062274]
[1727433933775,2.13666448,2650.6,2650.5,5.03062274]
[1727433934790,2.13666448,2650.6,2650.5,3.77287]
[1727433935000,0.78175059,2650.6,2650.5,3.77287]
[1727433935291,2.13666448,2650.6,2650.5,3.77287]
[1727433935664,0.78175059,2650.6,2650.5,3.77287]
[1727433935918,2.13666448,2650.6,2650.5,3.77287]
[1727433936066,2.1369724,2650.6,2650.5,3.77287]
[1727433937511,2.1369724,2650.6,2650.4,3.773]
[1727433937792,1.17228801,2650.6,2650.4,3.773]
[1727433938094,2.13569108,2650.5,2650.4,3.773]
[1727433939792,2.59899108,2650.5,2650.4,3.773]
[1727433940001,3.3241435,2650.5,2650.4,3.773]
[1727433941096,3.33235918,2650.5,2650.4,3.773]
[1727433941597,3.33233279,2650.5,2650.4,3.773]
[1727433941887,2.86903279,2650.5,2650.4,3.773]
[1727433942097,2.14398562,2650.5,2650.4,4.605405]
[1727433942793,2.27637882,2650.5,2650.4,4.605405]
[1727433943862,1.69524976,2650.5,2650.4,4.605405]
[1727433944198,1.69524976,2650.5,2650.4,3.773]
[1727433944400,3.0578071,2650.5,2650.4,3.773]
[1727433945162,0.78142828,2650.5,2650.4,3.773]
[1727433945364,1.69524976,2650.5,2650.4,3.773]
[1727433946160,3.0578071,2650.5,2650.4,3.773]
[1727433946609,1.69524976,2650.5,2650.4,3.773]
[1727433946892,3.0578071,2650.5,2650.4,3.773]
[1727433947299,1.69524976,2650.5,2650.4,3.773]
[1727433947457,3.0578071,2650.5,2650.4,3.773]
[1727433948316,4.24623925,2650.5,2650.4,3.773]
[1727433948611,6.46929965,2650.5,2650.4,3.773]
[1727433948775,6.46929965,2650.5,2650.3,3.77315]
[1727433949115,6.93721208,2650.4,2649.9,3.77362]
[1727433949319,5.67768194,2650.3,2650.1,3.77344]
[1727433949478,4.11454264,2650.2,2650.1,3.77344]
[1727433949813,0.4633,2650.1,2649.7,3.77387]
[1727433950107,0.4633,2650.1,2649.8,3.77386]
[1727433950108,0.78144592,2649.9,2649.8,3.77386]
[1727433950318,2.27637882,2649.9,2649.8,3.77386]
[1727433950483,3.05781163,2649.9,2649.8,3.77386]
[1727433950810,2.27637882,2649.9,2649.8,3.77386]
[1727433951216,2.28560948,2649.9,2649.8,3.77386]
[1727433951512,3.06693866,2649.9,2649.8,3.77386]
[1727433952314,3.06693866,2649.9,2649.8,4.528645]
[1727433952507,2.28560948,2649.9,2649.8,4.528645]
[1727433953011,3.06693866,2649.9,2649.8,4.528645]
[1727433953383,2.28560948,2649.9,2649.8,4.528645]
[1727433953978,3.06693866,2649.9,2649.8,4.528645]
[1727433954413,2.28560948,2649.9,2649.8,4.528645]
[1727433954612,1.69557297,2649.9,2649.8,4.528645]
[1727433955511,1.70026276,2650.0,2649.9,3.77372]
[1727433955685,3.078617,2650.0,2649.9,3.77372]
[1727433961283,3.0720167,2650.0,2649.9,3.77372]
[1727433962800,3.0720167,2650.0,2649.8,3.77386]
[1727433962801,2.29068752,2650.0,2649.8,3.77386]
[1727433963010,3.07160459,2649.9,2649.8,3.77386]
[1727433963230,2.29068752,2649.9,2649.8,3.77386]
[1727433963408,1.69719208,2649.9,2649.8,3.77386]
[1727433964333,3.07160459,2649.9,2649.8,3.77386]
[1727433964490,1.69719208,2649.9,2649.8,3.77386]
[1727433966235,1.69719208,2649.9,2648.9,16.06752418]
[1727433966236,0.4633,2649.8,2648.9,7.34]
[1727433966548,0.4633,2649.2,2649.0,3.7749]
[1727433966834,0.4633,2649.2,2648.9,3.77515]
[1727433966835,7.29344583,2649.1,2648.9,3.77515]
[1727433967036,3.47470119,2649.0,2648.9,3.77515]
[1727433967242,3.47470119,2649.0,2648.8,3.77525]
[1727433967243,3.08383526,2649.0,2648.8,3.77525]
[1727433967530,0.7800825,2649.0,2648.9,3.77515]
[1727433968102,2.15470739,2649.0,2648.9,3.77515]
[1727433968298,0.91641659,2649.0,2648.9,3.77515]
[1727433968706,0.7800825,2649.1,2648.9,3.77515]
[1727433969106,1.69609034,2649.1,2648.9,3.77515]
[1727433969306,0.7800825,2649.1,2648.8,3.77517]
[1727433969621,4.59760668,2649.1,2648.8,3.77517]
[1727433970296,3.81752418,2649.1,2648.8,3.77517]
[1727433970521,3.81752418,2649.1,2648.6,8.662465]
[1727433970722,3.81752418,2649.1,2648.6,4.886995]
[1727433971023,3.81752418,2649.1,2648.7,3.77536]
[1727433971565,3.81752418,2649.1,2648.6,4.886995]
[1727433971721,3.81752418,2649.1,2648.8,3.77529]
[1727433971921,5.19564169,2649.1,2648.6,3.77543]
[1727433972162,3.81752418,2648.9,2648.6,3.77543]
[1727433972459,3.81752418,2648.7,2648.3,3.77589]
[1727433972632,3.81752418,2648.5,2648.3,3.77589]